bitfinex/quotes_SOLUSD_20241216
["timestamp","ask_amount","ask_price","bid_price","bid_amount"]
[1734381908711,8.2049,217.11,216.99,23.776884]
[1734381908909,18.05601252,217.11,216.99,29.3975302]
[1734381909326,9.85111252,217.1,216.99,29.3975302]
[1734381909534,9.85111252,217.09,216.99,29.3975302]
[1734381909840,9.85111252,217.06,216.92,5.21750693]
[1734381910047,9.85111252,217.06,216.93,5.6206462]
[1734381910548,8.2049,217.11,216.93,5.6206462]
[1734381910549,9.85111252,217.04,216.93,5.6206462]
[1734381910743,7.867,217.03,216.93,5.6206462]
[1734381911046,9.85111252,217.0,216.93,5.6206462]
[1734381911246,9.85111252,217.0,216.87,10.83815313]
[1734381911535,9.85111252,217.0,216.88,0.12549]
[1734381911910,9.85111252,217.01,216.88,5.6206462]
[1734381912142,9.85111252,217.01,216.88,10.83815313]
[1734381912321,9.85111252,217.01,216.89,0.12549]
[1734381912629,9.85111252,217.01,216.88,10.83815313]
[1734381913145,9.85111252,217.02,216.89,23.776884]
[1734381917835,17.71811252,217.03,216.9,0.12549]
[1734381918018,7.867,217.03,216.93,23.776884]
[1734381918762,9.85111252,217.0,216.93,23.776884]
[1734381919053,9.85111252,217.01,216.93,23.776884]
[1734381919554,9.85111252,217.01,216.9,0.12549]
[1734381920227,9.85111252,217.01,216.9,23.902374]
[1734381921119,9.85111252,217.0,216.9,23.902374]
[1734381921342,9.85111252,217.01,216.9,23.902374]
[1734381922224,9.85111252,217.0,216.9,23.776884]
[1734381922455,9.85111252,217.0,216.86,1.5395]
[1734381922456,7.867,217.03,216.87,20.0]
[1734381922662,9.85111252,216.99,216.87,0.12549]
[1734381922842,7.867,217.03,216.87,0.12549]
[1734381923170,20.0,217.0,216.87,0.12549]
[1734381923467,0.2772,217.0,216.87,0.12549]
[1734381923628,0.2772,217.0,216.87,23.902374]
[1734381923825,0.2772,217.0,216.9,20.0]
[1734381924137,0.2772,217.0,216.91,23.776884]
[1734381924333,9.85111252,216.99,216.88,0.12549]
[1734381924536,9.85111252,216.99,216.88,23.902374]
[1734381924942,0.2772,217.0,216.88,23.902374]
[1734381925128,10.12831252,217.0,216.88,23.902374]
[1734381925540,0.2772,217.0,216.88,23.902374]
[1734381925719,10.12831252,217.0,216.88,23.902374]
[1734381927441,0.2772,217.0,216.88,23.902374]
[1734381927952,10.12831252,217.0,216.88,23.902374]
[1734381928940,9.85111252,216.97,216.88,23.902374]
[1734381929763,9.85111252,216.98,216.88,23.902374]
[1734381930379,7.867,217.03,216.92,23.776884]
[1734381930540,17.71811252,217.03,216.92,23.776884]
[1734381931108,17.71811252,217.03,216.94,23.902374]
[1734381931109,7.867,217.03,216.94,23.902374]
[1734381931375,9.85111252,217.08,216.94,23.902374]
[1734381931533,17.49151252,217.09,216.94,23.902374]
[1734381931732,7.6404,217.09,216.96,23.902374]
[1734381932869,9.85111252,217.07,216.95,23.776884]
[1734381933241,9.85111252,217.08,216.96,0.12549]
[1734381933462,17.49151252,217.09,216.96,0.12549]
[1734381933664,7.6404,217.09,216.99,23.776884]
[1734381934055,17.49151252,217.09,216.99,23.776884]
[1734381934550,9.85111252,217.08,216.99,23.776884]
[1734381934774,9.85111252,217.05,216.95,23.776884]
[1734381935060,9.85111252,217.04,216.93,20.0]
[1734381935680,9.85111252,217.04,216.94,0.12549]
[1734381935847,9.85111252,217.06,216.94,0.12549]
[1734381936071,9.85111252,217.07,216.94,0.12549]
[1734381936393,9.85111252,217.08,216.94,0.12549]
[1734381936593,9.85111252,217.08,216.94,23.902374]
[1734381936797,9.85111252,217.07,216.94,23.902374]
[1734381936955,7.6404,217.09,216.96,0.12549]
[1734381937147,9.85111252,217.08,216.96,23.902374]
[1734381937346,17.49151252,217.09,216.96,23.902374]
[1734381937583,9.85111252,217.07,216.96,23.902374]
[1734381938891,9.85111252,217.08,216.96,23.902374]
[1734381939587,0.0483133,217.12,216.96,23.902374]
[1734381939845,9.85111252,217.06,216.96,23.902374]
[1734381939998,9.85111252,217.08,216.96,23.902374]
[1734381940588,9.85111252,217.09,216.99,20.0]
[1734381940793,9.85111252,217.09,217.0,23.776884]
[1734381941656,9.85111252,217.08,217.0,23.776884]
[1734381943403,9.85111252,217.07,216.96,0.12549]
[1734381943618,9.85111252,217.05,216.96,23.902374]
[1734381943821,20.0,217.11,216.96,23.902374]
[1734381944010,9.85111252,217.07,216.96,23.902374]
[1734381944597,10.12831252,217.07,216.96,23.902374]
[1734381948206,9.85111252,217.04,216.95,1.504]
[1734381948426,9.85111252,217.03,216.95,1.504]
[1734381948721,0.2772,217.07,216.95,1.504]
[1734381948722,9.85111252,217.02,216.95,1.504]
[1734381948925,9.85111252,217.02,216.9,11.59602915]
[1734381948926,9.85111252,217.01,216.9,13.16302915]
[1734381949116,9.85111252,217.01,216.91,0.12549]
[1734381950044,9.85111252,216.98,216.9,13.16302915]
[1734381950197,9.85111252,216.97,216.9,1.567]
[1734381951131,9.85111252,216.98,216.9,1.567]
[1734381952211,9.85111252,216.97,216.9,1.567]
[1734381952407,9.85111252,216.94,216.85,8.0118]
[1734381952848,9.85111252,216.94,216.86,0.12549]
[1734381953744,9.85111252,216.94,216.86,23.902374]
[1734381954243,9.85111252,216.95,216.86,23.902374]
[1734381954747,9.85111252,216.93,216.85,8.0118]
[1734381955052,9.85111252,216.93,216.85,1.6366]
[1734381955341,7.7228,216.98,216.85,1.6366]
[1734381955342,9.85111252,216.95,216.85,1.6366]
[1734381955810,9.85111252,216.94,216.85,1.6366]
[1734381956133,9.85111252,216.92,216.81,23.902374]
[1734381956348,9.85111252,216.9,216.8,8.2622]
[1734381956547,9.85111252,216.89,216.8,8.2622]
[1734381956845,9.85111252,216.89,216.81,0.12549]
[1734381957014,9.85111252,216.91,216.81,0.12549]
[1734381958026,9.85111252,216.93,216.81,0.12549]
[1734381958735,9.85111252,216.93,216.81,23.902374]
[1734381959214,9.85111252,216.94,216.81,23.902374]
[1734381959414,20.0,216.91,216.81,23.902374]
[1734381960416,20.0,216.95,216.81,23.902374]
[1734381960738,9.85111252,216.96,216.81,23.902374]
[1734381961634,7.7228,216.98,216.81,23.902374]
[1734381961635,9.85111252,216.94,216.81,23.902374]
[1734381961849,9.85111252,216.94,216.85,23.902374]
[1734381962945,9.85111252,216.95,216.85,23.902374]
[1734381964033,9.85111252,216.94,216.85,23.902374]
[1734381964340,22.77753788,216.99,216.85,23.902374]
[1734381964641,9.85111252,216.95,216.85,23.902374]
[1734381965645,3.05473788,216.99,216.86,1.5501]
[1734381965844,9.85111252,216.96,216.86,1.5501]
[1734381966046,3.05473788,216.99,216.86,1.5501]
[1734381966047,9.85111252,216.95,216.86,1.5501]
[1734381966417,9.85111252,216.96,216.86,1.5501]
[1734381966928,9.85111252,216.96,216.87,23.902374]
[1734381967225,9.85111252,216.98,216.87,23.902374]
[1734381968948,10.12831252,216.99,216.88,6.2821]
[1734381970247,9.85111252,216.98,216.88,6.2821]
[1734381970418,9.85111252,216.97,216.88,6.2821]
[1734381970620,9.85111252,216.94,216.86,1.5501]
[1734381970836,0.2772,216.99,216.86,1.5501]
[1734381970837,9.85111252,216.91,216.86,1.5501]
[1734381971126,9.85111252,216.9,216.83,6.6604]
[1734381971827,9.85111252,216.88,216.81,1.5416]
[1734381972439,9.85111252,216.86,216.81,1.5416]
[1734381972924,9.85111252,216.87,216.81,1.5416]
[1734381973551,39.40445008,216.92,216.73,10.87599758]
[1734381973552,9.85111252,216.86,216.74,1.6609]
[1734381973731,9.85111252,216.86,216.75,0.12549]
[1734381974645,9.85111252,216.86,216.75,23.902374]
[1734381975321,9.85111252,216.84,216.75,23.902374]
[1734381975746,9.85111252,216.85,216.75,23.902374]
[1734381976161,9.85111252,216.86,216.75,23.902374]
[1734381978456,9.85111252,216.85,216.75,23.902374]
[1734381978963,9.85111252,216.86,216.75,23.902374]
[1734381979644,9.85111252,216.83,216.74,1.6609]
[1734381981372,9.85111252,216.82,216.74,1.6609]
[1734381981534,9.85111252,216.79,216.74,1.6609]
[1734381981734,9.85111252,216.78,216.74,1.6609]
[1734381982567,9.85111252,216.77,216.68,6.6596]
[1734381983488,9.85111252,216.76,216.68,6.6596]
[1734381983757,9.85111252,216.74,216.67,1.5518]
[1734381983947,9.85111252,216.73,216.67,1.5518]
[1734381984132,5.0,216.8,216.67,1.5518]
[1734381984133,9.85111252,216.71,216.67,1.5518]
[1734381984536,9.85111252,216.68,216.61,1.6348]
[1734381984762,20.0,216.73,216.61,1.6348]
[1734381984955,9.85111252,216.7,216.61,1.6348]
[1734381985167,9.85111252,216.69,216.61,1.6348]
[1734381985465,9.85111252,216.67,216.61,1.6348]
[1734381986349,9.85111252,216.66,216.61,1.6348]
[1734381986752,9.85111252,216.65,216.57,7.0592]
[1734381987840,9.85111252,216.64,216.57,7.0592]
[1734381988052,9.85111252,216.64,216.57,0.5]
[1734381988639,9.85111252,216.65,216.57,0.5]
[1734381988858,0.2772,216.67,216.57,0.5]
[1734381989065,10.12831252,216.67,216.57,0.5]
[1734381990338,9.85111252,216.66,216.57,0.5]
[1734381990538,9.85111252,216.64,216.57,0.5]
[1734381990737,9.85111252,216.63,216.57,0.5]
[1734381990951,9.85111252,216.62,216.57,0.5]
[1734381991155,9.85111252,216.63,216.57,0.5]
[1734381992339,20.2772,216.67,216.57,0.5]
[1734381992667,9.85111252,216.63,216.57,0.5]
[1734381993458,9.85111252,216.62,216.57,0.5]
[1734381993660,9.85111252,216.61,216.57,0.5]
[1734381993851,9.85111252,216.59,216.57,0.5]
[1734381994568,8.47830527,216.59,216.57,0.5]
[1734381994884,9.85111252,216.58,216.57,0.5]
[1734381997279,20.0,216.62,216.57,0.5]
[1734381997468,9.85111252,216.59,216.57,0.5]
[1734381997670,9.85111252,216.59,216.47,1.37815005]
[1734381997671,148.15111252,216.49,216.47,1.37815005]
[1734381997854,9.85111252,216.49,216.47,1.37815005]
[1734381998357,15.48199219,216.48,216.47,1.37815005]
[1734381999182,30.96398438,216.48,216.47,1.37815005]
[1734381999560,15.48199219,216.48,216.47,1.37815005]
[1734382000379,30.96398438,216.48,216.47,1.37815005]
[1734382000561,54.74086838,216.48,216.47,1.37815005]
[1734382001288,54.74086838,216.48,216.35,0.5483133]
[1734382001289,20.0,216.44,216.35,0.5483133]
[1734382001497,15.48199219,216.39,216.35,0.5483133]
[1734382001856,15.48199219,216.39,216.33,0.6604133]
[1734382005115,15.48199219,216.39,216.28,1.5266]
[1734382005602,15.48199219,216.37,216.28,1.5266]
[1734382006603,15.48199219,216.35,216.28,1.5266]
[1734382006788,15.48199219,216.33,216.28,1.5266]
[1734382007008,15.48199219,216.33,216.22,6.6125]
[1734382007209,15.48199219,216.33,216.23,1.5266]
[1734382008111,15.48199219,216.36,216.23,1.5266]
[1734382008315,35.48199219,216.37,216.23,1.5266]
[1734382008481,15.48199219,216.38,216.23,1.5266]
[1734382008677,0.2772,216.33,216.23,1.5266]
[1734382009310,15.48199219,216.38,216.23,1.5266]
[1734382009781,10.0,216.45,216.23,1.5266]
[1734382009982,15.48199219,216.4,216.23,1.5266]
[1734382010627,15.48199219,216.42,216.3,0.12549]
[1734382010784,15.48199219,216.44,216.31,8.1391]
[1734382012511,15.48199219,216.43,216.31,8.1391]
[1734382012684,20.0,216.45,216.31,8.1391]
[1734382012685,15.48199219,216.42,216.31,8.1391]
[1734382012889,15.48199219,216.43,216.31,8.1391]
[1734382013291,15.48199219,216.42,216.31,8.1391]
[1734382013493,15.48199219,216.43,216.31,8.1391]
[1734382014945,15.48199219,216.4,216.31,8.1391]
[1734382015132,15.48199219,216.37,216.31,8.1391]
[1734382015596,15.48199219,216.36,216.31,8.1391]
[1734382015910,15.48199219,216.37,216.31,8.1391]
[1734382016609,15.48199219,216.39,216.31,8.1391]
[1734382017112,15.48199219,216.38,216.31,8.1391]
[1734382017414,15.48199219,216.37,216.31,1.5266]
[1734382019032,15.48199219,216.38,216.31,1.5266]
[1734382019219,2.71046397,216.37,216.31,1.5266]
[1734382019421,20.0,216.44,216.31,1.5266]
[1734382019611,15.48199219,216.4,216.31,1.5266]
[1734382019809,15.48199219,216.38,216.31,1.5266]
[1734382020439,15.48199219,216.39,216.31,1.5266]
[1734382020842,15.48199219,216.4,216.31,1.5266]
[1734382021338,15.48199219,216.41,216.31,1.5266]
[1734382021538,15.48199219,216.42,216.31,1.5266]
[1734382021708,15.48199219,216.43,216.32,20.12549]
[1734382022119,2.74413394,216.48,216.32,20.12549]
[1734382022301,18.22612613,216.48,216.36,0.12549]
[1734382022743,15.48199219,216.47,216.36,0.12549]
[1734382023035,15.48199219,216.47,216.36,23.902374]
[1734382023248,15.48199219,216.47,216.38,0.12549]
[1734382023532,15.48199219,216.5,216.38,23.902374]
[1734382023734,15.48199219,216.49,216.38,23.902374]
[1734382024110,10.0,216.57,216.38,20.12549]
[1734382024111,15.48199219,216.48,216.38,20.12549]
[1734382024309,5.0,216.55,216.38,20.12549]
[1734382024310,15.48199219,216.47,216.38,20.12549]
[1734382024809,15.48199219,216.48,216.38,20.12549]
[1734382025031,15.48199219,216.47,216.38,20.12549]
[1734382025204,2.80510124,216.49,216.37,1.5586]
[1734382025534,15.48199219,216.44,216.37,1.5586]
[1734382025728,15.48199219,216.42,216.37,1.5586]
[1734382025906,15.48199219,216.44,216.37,1.5586]
[1734382026755,15.48199219,216.46,216.37,1.5586]
[1734382026929,15.48199219,216.47,216.37,1.5586]
[1734382027238,15.48199219,216.45,216.37,1.5586]
[1734382027441,2.80510124,216.49,216.37,1.5586]
[1734382027634,15.48199219,216.45,216.37,1.5586]
[1734382028033,15.48199219,216.46,216.37,1.5586]
[1734382029009,2.80510124,216.49,216.37,1.5586]
[1734382029354,15.48199219,216.43,216.37,1.5586]
[1734382029710,15.48199219,216.44,216.37,1.5586]
[1734382029915,15.48199219,216.45,216.37,1.5586]
[1734382030157,20.0,216.35,216.2,7.7787]
[1734382031415,15.48199219,216.34,216.2,7.7787]
[1734382032631,15.48199219,216.36,216.2,7.7787]
[1734382033624,15.48199219,216.38,216.2,7.7787]
[1734382033839,15.48199219,216.36,216.2,7.7787]
[1734382034047,15.48199219,216.34,216.2,7.7787]
[1734382035158,20.0,216.41,216.2,7.7787]
[1734382035340,15.48199219,216.37,216.2,7.7787]
[1734382035939,15.48199219,216.39,216.3,1.5424]
[1734382036159,15.48199219,216.42,216.31,6.18539]
[1734382036451,15.48199219,216.41,216.31,6.18539]
[1734382036871,15.48199219,216.36,216.31,6.0599]
[1734382038069,15.48199219,216.37,216.31,6.0599]
[1734382039136,15.48199219,216.4,216.31,6.0599]
[1734382039467,15.48199219,216.34,216.2,1.5365]
[1734382039670,15.48199219,216.32,216.2,1.5365]
[1734382041757,15.48199219,216.3,216.2,1.5365]
[1734382042679,15.48199219,216.3,216.29,72.29490023]
[1734382043239,15.48199219,216.3,216.13,0.5483133]
[1734382043240,20.0,216.25,216.13,0.5483133]
[1734382043439,15.48199219,216.17,216.13,0.5483133]
[1734382045356,23.902374,216.16,216.15,72.27547955]
[1734382045556,39.38436619,216.16,216.15,72.27547955]
[1734382045756,15.48199219,216.17,216.15,72.27547955]
[1734382048849,15.48199219,216.18,216.15,72.27547955]
[1734382049053,15.48199219,216.22,216.15,72.27547955]
[1734382049251,6.2028,216.32,216.15,72.27547955]
[1734382049453,15.48199219,216.24,216.15,72.27547955]
[1734382049649,15.48199219,216.23,216.15,72.27547955]
[1734382051180,15.48199219,216.22,216.15,72.27547955]
[1734382051674,15.48199219,216.2,216.15,72.27547955]
[1734382051853,15.48199219,216.21,216.15,72.27547955]
[1734382052055,20.0,216.19,216.15,72.27547955]
[1734382052570,15.48199219,216.22,216.15,72.27547955]
[1734382052778,20.0,216.19,216.15,72.27547955]
[1734382053072,15.48199219,216.18,216.15,72.27547955]
[1734382053384,35.48199219,216.16,216.15,72.27547955]
[1734382054981,20.0,216.16,216.15,72.27547955]
[1734382055661,15.48199219,216.19,216.15,72.27547955]
[1734382055971,15.48199219,216.21,216.15,72.27547955]
[1734382056490,15.48199219,216.24,216.15,72.27547955]
[1734382057251,15.48199219,216.22,216.15,72.27547955]
[1734382057457,15.48199219,216.2,216.15,72.27547955]
[1734382057699,15.48199219,216.19,216.15,72.27547955]
[1734382057982,15.48199219,216.18,216.15,72.27547955]
[1734382058158,24.83049156,216.18,216.15,72.27547955]
[1734382058357,24.83049156,216.16,216.15,72.27547955]
[1734382059785,24.83049156,216.18,216.15,72.27547955]
[1734382060365,20.0,216.16,216.15,72.27547955]
[1734382060556,24.83049156,216.18,216.15,72.27547955]
[1734382063586,24.83049156,216.19,216.15,72.27547955]
[1734382064293,20.0,216.23,216.15,72.27547955]
[1734382064493,23.776884,216.24,216.15,72.27547955]
[1734382064796,24.83049156,216.17,216.15,72.27547955]
[1734382066361,23.776884,216.16,216.15,72.27547955]
[1734382067585,23.902374,216.16,216.15,72.27547955]
[1734382068777,23.902374,216.16,216.0,20.98233]
[1734382068778,23.776884,216.11,216.0,20.98233]
[1734382068976,24.83049156,216.04,216.0,20.98233]
[1734382069172,24.83049156,216.04,216.02,99.0]
[1734382070099,24.83049156,216.06,216.02,99.0]
[1734382070286,24.83049156,216.04,216.02,99.0]
[1734382072093,23.902374,216.03,216.02,99.0]
[1734382072481,23.902374,216.03,216.02,71.26158543]
[1734382073379,37.712374,216.03,216.02,71.26158543]
[1734382073571,30.12549,216.01,216.0,20.98233]
[1734382073892,5.0,215.97,215.91,0.5483133]
[1734382074098,24.83049156,215.92,215.91,0.5483133]
[1734382074897,24.83049156,215.94,215.91,0.5483133]
[1734382075389,24.83049156,215.94,215.91,0.0483133]
[1734382075592,24.83049156,215.95,215.91,0.0483133]
[1734382077482,24.83049156,215.97,215.91,0.0483133]
[1734382078382,20.0,216.0,215.91,0.0483133]
[1734382078581,24.83049156,215.96,215.91,0.0483133]
[1734382078784,24.83049156,215.98,215.91,0.0483133]
[1734382080103,24.83049156,215.96,215.91,0.0483133]
[1734382080513,24.83049156,215.98,215.91,0.0483133]
[1734382080686,24.83049156,215.99,215.91,0.0483133]
[1734382081604,24.83049156,216.0,215.91,0.0483133]
[1734382082527,24.83049156,215.99,215.91,0.0483133]
[1734382082722,24.83049156,216.0,215.91,0.0483133]
[1734382083014,2.78465943,216.04,215.92,6.5477]
[1734382083177,6.0583,216.14,215.92,6.5477]
[1734382083178,24.83049156,216.13,215.95,20.0]
[1734382083375,6.0583,216.14,215.96,12.14153804]
[1734382083573,26.44069156,216.16,215.97,0.12549]
[1734382083810,24.83049156,216.14,215.97,5.97313763]
[1734382084003,24.83049156,216.1,215.97,5.84764763]
[1734382084201,24.83049156,216.09,215.94,20.0]
[1734382084390,24.83049156,216.08,215.94,19.61489504]
[1734382084596,24.83049156,216.09,215.94,19.61489504]
[1734382085994,24.83049156,216.02,215.92,1.5477]
[1734382086702,24.83049156,216.03,215.92,1.5477]
[1734382090038,2.70625782,216.0,215.92,1.5477]
[1734382090730,24.83049156,216.08,215.92,1.5477]
[1734382092294,24.83049156,216.04,215.92,1.5477]
[1734382093201,44.83049156,216.06,215.92,1.5477]
[1734382093391,23.776884,216.05,215.92,1.5477]
[1734382093822,20.0,216.06,215.92,1.5477]
[1734382094419,24.83049156,216.08,215.92,1.5477]
[1734382094940,44.83049156,216.1,215.92,1.5477]
[1734382095543,44.83049156,216.1,215.92,6.5477]
[1734382095713,2.79455601,216.11,215.95,20.0]
[1734382096701,2.79455601,216.11,215.96,28.0833]
[1734382096909,24.83049156,216.16,215.98,20.0]
[1734382097233,24.83049156,216.16,215.97,0.12549]
[1734382097555,24.83049156,216.16,215.97,23.902374]
[1734382098108,27.60341445,216.12,215.96,28.0833]
[1734382098699,24.83049156,216.08,215.96,8.0833]
[1734382098992,24.83049156,216.04,215.96,8.0833]
[1734382099431,24.83049156,216.06,215.96,8.0833]
[1734382100115,0.12549,216.05,215.96,8.0833]
[1734382100323,0.12549,216.05,215.96,1.587]
[1734382100507,24.83049156,216.04,215.96,1.587]
[1734382100706,24.83049156,216.06,215.96,1.587]
[1734382104845,5.0,216.1,215.96,1.587]
[1734382104846,24.83049156,216.1,215.96,1.587]
[1734382105026,20.0,216.07,215.96,1.587]
[1734382105532,24.83049156,216.08,215.96,1.587]
[1734382106747,0.2784,216.08,215.96,1.587]
[1734382106954,0.2784,216.08,215.97,6.5098]
[1734382107621,24.83049156,216.05,215.97,6.5098]
[1734382108119,24.95598156,216.07,215.97,6.5098]
[1734382108812,24.83049156,216.07,215.97,6.5098]
[1734382109013,20.0,216.07,215.97,6.5098]
[1734382109433,25.10889156,216.08,215.97,6.5098]
[1734382110006,0.2784,216.08,215.97,6.5098]
[1734382110839,15.53253732,216.05,215.97,6.5098]
[1734382111753,0.2784,216.08,215.97,6.5098]
[1734382111754,15.53253732,216.07,215.97,6.5098]
[1734382112051,0.2784,216.08,215.97,6.5098]
[1734382114518,20.2784,216.08,215.97,6.5098]
[1734382117646,0.2784,216.08,215.97,6.5098]
[1734382117863,0.2784,216.08,216.0,23.776884]
[1734382118047,0.2784,216.08,216.03,23.776884]
[1734382118360,0.2784,216.08,216.04,1.6223]
[1734382119343,0.2784,216.08,216.05,23.776884]
[1734382121542,0.2784,216.08,216.04,1.6223]
[1734382136769,0.2784,216.08,216.05,23.776884]
[1734382141202,0.2784,216.08,216.04,6.6223]
[1734382141203,0.2784,216.08,216.04,1.6223]
[1734382146602,0.2784,216.08,216.05,23.902374]
[1734382146809,2.76835733,216.21,216.05,41.04391204]
[1734382147111,17.17003732,216.24,216.05,41.04391204]
[1734382147276,15.53253732,216.23,216.05,36.04391204]
[1734382147473,15.53253732,216.23,216.05,41.04391204]
[1734382147703,17.17003732,216.24,216.05,41.04391204]
[1734382147899,20.0,216.21,216.05,41.04391204]
[1734382148104,15.53253732,216.27,216.1,0.12549]
[1734382148411,15.53253732,216.27,216.1,23.902374]
[1734382148704,2.8167148,216.25,216.1,23.902374]
[1734382149306,20.0,216.24,216.1,23.902374]
[1734382149496,2.8167148,216.25,216.1,23.902374]
[1734382149675,22.8167148,216.25,216.1,36.04391204]
[1734382152706,20.0,216.24,216.1,36.04391204]
[1734382152907,15.53253732,216.22,216.1,12.14153804]
[1734382153222,15.53253732,216.2,216.09,1.6587]
[1734382154012,15.53253732,216.21,216.09,1.6587]
[1734382154985,15.53253732,216.22,216.09,1.6587]
[1734382155206,20.0,216.19,216.09,1.6587]
[1734382156023,20.0,216.21,216.1,0.12549]
[1734382156316,18.34925212,216.25,216.1,0.12549]
[1734382156496,18.34925212,216.25,216.1,23.902374]
[1734382156817,15.53253732,216.24,216.1,23.776884]
[1734382157000,15.53253732,216.23,216.09,1.6587]
[1734382157415,15.53253732,216.22,216.09,1.6587]
[1734382158712,15.53253732,216.2,216.09,1.6587]
[1734382159284,15.53253732,216.21,216.09,1.6587]
[1734382159512,20.0,216.19,216.09,1.6587]
[1734382160214,20.0,216.21,216.09,1.6587]
[1734382160413,1.0,216.22,216.1,23.902374]
[1734382160796,1.0,216.22,216.09,1.6587]
[1734382160989,15.53253732,216.21,216.09,1.6587]
[1734382161694,15.53253732,216.17,216.09,1.6587]
[1734382162718,15.53253732,216.18,216.09,1.6587]
[1734382162895,15.53253732,216.2,216.09,1.6587]
[1734382163098,15.53253732,216.21,216.09,1.6587]
[1734382163403,15.53253732,216.2,216.09,1.6587]
[1734382163923,1.0,216.22,216.09,1.6587]
[1734382164217,1.0,216.22,216.1,23.902374]
[1734382164218,20.0,216.21,216.1,23.902374]
[1734382165193,20.0,216.21,216.09,1.6587]
[1734382165194,15.53253732,216.21,216.09,1.6587]
[1734382165512,15.53253732,216.19,216.09,1.6587]
[1734382165996,15.53253732,216.2,216.09,1.6587]
[1734382166195,15.53253732,216.18,216.09,1.6587]
[1734382166416,15.53253732,216.17,216.09,1.6587]
[1734382167613,15.53253732,216.18,216.09,1.6587]
[1734382169215,20.0,216.18,216.09,1.6587]
[1734382169411,15.53253732,216.21,216.09,1.6587]
[1734382169613,16.53253732,216.22,216.09,1.6587]
[1734382170138,1.0,216.22,216.1,23.902374]
[1734382173413,1.0,216.22,216.14,0.12549]
[1734382173620,1.0,216.22,216.14,23.902374]
[1734382174031,1.0,216.22,216.15,1.6628]
[1734382174314,1.0,216.22,216.17,0.12549]
[1734382174507,1.0,216.22,216.17,23.902374]
[1734382175616,1.0,216.22,216.17,0.12549]
[1734382176905,1.0,216.22,216.17,23.902374]
[1734382179907,1.0,216.22,216.17,35.19626441]
[1734382180106,1.0,216.22,216.19,23.902374]
[1734382181443,1.0,216.22,216.19,0.12549]
[1734382181649,1.0,216.22,216.18,1.6097]
[1734382185021,1.0,216.22,216.19,0.12549]
[1734382185734,1.0,216.22,216.18,1.6097]
[1734382191825,1.0,216.22,216.19,0.12549]
[1734382192765,1.0,216.22,216.19,20.12549]
[1734382193067,1.0,216.22,216.21,0.12549]
[1734382196157,1.6306,216.36,216.24,0.12549]
[1734382196359,9.92029581,216.38,216.24,20.12549]
[1734382196772,16.23669581,216.4,216.26,1.73159]
[1734382196935,9.92029581,216.34,216.26,1.6061]
[1734382197357,9.92029581,216.35,216.26,1.6061]
[1734382198369,9.92029581,216.36,216.26,1.6061]
[1734382199450,9.92029581,216.32,216.2,23.776884]
[1734382199661,9.92029581,216.32,216.2,0.12549]
[1734382200265,9.92029581,216.32,216.19,6.29374839]
[1734382200650,9.92029581,216.3,216.19,6.29374839]
[1734382201169,9.92029581,216.32,216.19,6.29374839]
[1734382202462,9.92029581,216.31,216.19,6.29374839]
[1734382202862,20.0,216.37,216.2,23.902374]
[1734382203175,9.92029581,216.37,216.23,20.0]
[1734382203350,9.92029581,216.39,216.24,0.12549]
[1734382203555,9.92029581,216.39,216.26,0.12549]
[1734382204470,0.5,216.46,216.29,7.9743]
[1734382204672,2.70130219,216.57,216.42,7.9743]
[1734382205379,9.92029581,216.62,216.43,24.59528288]
[1734382205878,9.92029581,216.6,216.43,23.902374]
[1734382206477,9.92029581,216.58,216.43,0.12549]
[1734382206687,20.0,216.53,216.42,7.9743]
[1734382207154,9.92029581,216.54,216.42,7.9743]
[1734382207355,20.0,216.51,216.42,7.9743]
[1734382207791,9.92029581,216.48,216.36,12.99933904]
[1734382207994,15.47804248,216.46,216.36,12.99933904]
[1734382208170,15.47804248,216.46,216.36,6.3941]
[1734382208581,15.47804248,216.46,216.35,1.5725]
[1734382208582,15.47804248,216.45,216.35,1.5725]
[1734382208791,15.47804248,216.44,216.31,6.60523904]
[1734382208996,15.47804248,216.43,216.31,6.60523904]
[1734382209307,15.47804248,216.4,216.31,6.60523904]
[1734382209605,15.47804248,216.41,216.31,6.60523904]